fUST/lending_fUST_20250210
["ID","MTS","AMOUNT","RATE_DAILY","PERIOD"]
[352552510,1739163048156,-1031.63,0.00012191,2]
[352552511,1739163048167,-500.0,0.00012191,2]
[352552512,1739163048181,-500.0,0.00012191,2]
[352552513,1739163048192,-500.0,0.00012191,2]
[352552514,1739163048203,-500.0,0.00012191,2]
[352552515,1739163048215,-1082.77,0.00012191,2]
[352552516,1739163048225,-801.49,0.00012191,2]
[352552517,1739163048236,-833.37,0.00012191,2]
[352552518,1739163048247,-13992.6,0.00012191,2]
[352552519,1739163048258,-6728.37,0.00012191,2]
[352552520,1739163048269,-673.41,0.00012191,2]
[352552521,1739163048280,-551.31,0.00012191,2]
[352552522,1739163048291,-500.0,0.00012191,2]
[352552523,1739163048302,-571.43,0.00012191,2]
[352552524,1739163048313,-500.0,0.00012191,2]
[352552525,1739163048323,-1368.94,0.00012191,2]
[352552526,1739163048334,-564.24,0.00012191,2]
[352552527,1739163048345,-714.2,0.00012191,2]
[352552528,1739163048357,-559.25,0.00012191,2]
[352552529,1739163048367,-1349.53,0.00012191,2]
[352552530,1739163048378,-500.0,0.00012191,2]
[352552531,1739163048389,-670.75,0.00012191,2]
[352552532,1739163048401,-500.0,0.00012191,2]
[352552533,1739163048412,-500.0,0.00012191,2]
[352552534,1739163048423,-523.19,0.00012191,2]
[352552535,1739163048435,-733.06,0.00012191,2]
[352552536,1739163048445,-500.0,0.00012191,2]
[352552537,1739163048456,-588.74,0.00012191,2]
[352552538,1739163048467,-1734.87,0.00012191,2]
[352552539,1739163048479,-1637.76,0.00012191,2]
[352552540,1739163048490,-520.16,0.00012191,2]
[352552541,1739163048501,-734.43,0.00012191,2]
[352552542,1739163048511,-500.0,0.00012191,2]
[352552543,1739163048523,-189.49,0.00012191,2]
[352552544,1739163048534,-151.0,0.000122,2]
[352552545,1739163048544,-12815.9952308,0.00012204,2]
[352552546,1739163048555,-503.21350288,0.0001223,2]
[352552547,1739163048566,-514.67,0.00012328,2]
[352552548,1739163048583,-500.0,0.00012328,2]
[352552549,1739163048593,-500.0,0.00012328,2]
[352552550,1739163048603,-500.0,0.00012328,2]
[352552551,1739163048614,-713.08,0.00012328,2]
[352552552,1739163048625,-500.0,0.00012328,2]
[352552553,1739163048636,-500.0,0.00012328,2]
[352552554,1739163048647,-500.0,0.00012328,2]
[352552555,1739163048658,-500.0,0.00012328,2]
[352552556,1739163048669,-1011.07,0.00012328,2]
[352552557,1739163048679,-500.0,0.00012328,2]
[352552558,1739163048691,-500.0,0.00012328,2]
[352552559,1739163048703,-3397.26,0.00012328,2]
[352552560,1739163048714,-1873.66,0.00012328,2]
[352552561,1739163048725,-2712.36,0.00012328,2]
[352552562,1739163048735,-1060.14,0.00012328,2]
[352552563,1739163048745,-500.0,0.00012328,2]
[352552564,1739163048756,-2000.71,0.00012328,2]
[352552565,1739163048767,-615.32,0.00012328,2]
[352552566,1739163048777,-500.0,0.00012328,2]
[352552567,1739163048787,-1031.63,0.00012328,2]
[352552568,1739163048797,-500.0,0.00012328,2]
[352552569,1739163048808,-500.0,0.00012328,2]
[352552570,1739163048819,-500.0,0.00012328,2]
[352552571,1739163048829,-500.0,0.00012328,2]
[352552572,1739163048845,-1082.77,0.00012328,2]
[352552573,1739163048856,-801.49,0.00012328,2]
[352552574,1739163048867,-833.37,0.00012328,2]
[352552575,1739163048878,-13992.6,0.00012328,2]
[352552576,1739163048891,-6728.37,0.00012328,2]
[352552577,1739163048902,-673.41,0.00012328,2]
[352552578,1739163048914,-551.31,0.00012328,2]
[352552579,1739163048925,-500.0,0.00012328,2]
[352552580,1739163048936,-571.43,0.00012328,2]
[352552581,1739163048948,-500.0,0.00012328,2]
[352552582,1739163048959,-1368.94,0.00012328,2]
[352552583,1739163048970,-564.24,0.00012328,2]
[352552584,1739163048981,-714.2,0.00012328,2]
[352552585,1739163048991,-559.25,0.00012328,2]
[352552586,1739163049001,-1349.53,0.00012328,2]
[352552587,1739163049012,-500.0,0.00012328,2]
[352552588,1739163049022,-670.75,0.00012328,2]
[352552589,1739163049161,-500.0,0.00012328,2]
[352552590,1739163049174,-500.0,0.00012328,2]
[352552591,1739163049187,-523.19,0.00012328,2]
[352552592,1739163049198,-733.06,0.00012328,2]
[352552593,1739163049208,-500.0,0.00012328,2]
[352552594,1739163049218,-588.74,0.00012328,2]
[352552595,1739163049228,-1734.87,0.00012328,2]
[352552596,1739163049239,-1637.76,0.00012328,2]
[352552597,1739163049249,-734.43,0.00012328,2]
[352552598,1739163049259,-500.0,0.00012328,2]
[352552599,1739163049269,-411.6878396,0.00012367,2]
[352552600,1739163049279,-151.0,0.000124,2]
[352552601,1739163049288,-1000.0,0.00012422,2]
[352552602,1739163049299,-514.67,0.00012465,2]
[352552603,1739163049309,-500.0,0.00012465,2]
[352552604,1739163049319,-500.0,0.00012465,2]
[352552605,1739163049330,-500.0,0.00012465,2]
[352552606,1739163049340,-713.08,0.00012465,2]
[352552607,1739163049350,-383.46,0.00012465,2]
[352552608,1739163049360,-500.0,0.00012465,2]
[352552609,1739163049370,-500.0,0.00012465,2]
[352552610,1739163049380,-500.0,0.00012465,2]
[352552611,1739163049390,-1011.07,0.00012465,2]
[352552612,1739163049400,-500.0,0.00012465,2]
[352552613,1739163049409,-500.0,0.00012465,2]
[352552614,1739163049420,-3397.26,0.00012465,2]
[352552615,1739163049430,-1873.66,0.00012465,2]
[352552616,1739163049440,-2712.36,0.00012465,2]
[352552617,1739163049450,-1060.14,0.00012465,2]
[352552618,1739163049460,-500.0,0.00012465,2]
[352552619,1739163049470,-2000.71,0.00012465,2]
[352552620,1739163049480,-615.32,0.00012465,2]
[352552621,1739163049489,-500.0,0.00012465,2]
[352552622,1739163049499,-1031.63,0.00012465,2]
[352552623,1739163049509,-566.00167494,0.00012465,2]
[352552624,1739163049518,-500.0,0.00012465,2]
[352552625,1739163049528,-500.0,0.00012465,2]
[352552626,1739163049537,-500.0,0.00012465,2]
[352552627,1739163049547,-1082.77,0.00012465,2]
[352552628,1739163049557,-801.49,0.00012465,2]
[352552629,1739163049567,-833.37,0.00012465,2]
[352552630,1739163049577,-13992.6,0.00012465,2]
[352552631,1739163049587,-6728.37,0.00012465,2]
[352552632,1739163049597,-673.41,0.00012465,2]
[352552633,1739163049607,-551.31,0.00012465,2]
[352552634,1739163049616,-500.0,0.00012465,2]
[352552635,1739163049625,-571.43,0.00012465,2]
[352552636,1739163049636,-500.0,0.00012465,2]
[352552637,1739163049646,-1368.94,0.00012465,2]
[352552638,1739163049655,-564.24,0.00012465,2]
[352552639,1739163049666,-714.2,0.00012465,2]
[352552640,1739163049676,-559.25,0.00012465,2]
[352552641,1739163049685,-1349.53,0.00012465,2]
[352552642,1739163049695,-500.0,0.00012465,2]
[352552643,1739163049705,-670.75,0.00012465,2]
[352552644,1739163049715,-500.0,0.00012465,2]
[352552645,1739163049725,-500.0,0.00012465,2]
[352552646,1739163049735,-523.19,0.00012465,2]
[352552647,1739163049744,-733.06,0.00012465,2]
[352552648,1739163049754,-500.0,0.00012465,2]
[352552649,1739163049764,-588.74,0.00012465,2]
[352552650,1739163049773,-1734.87,0.00012465,2]
[352552651,1739163049782,-1637.76,0.00012465,2]
[352552652,1739163049792,-734.43,0.00012465,2]
[352552653,1739163049801,-500.0,0.00012465,2]
[352552654,1739163049812,-4430.89038492,0.000125,2]
[352552655,1739163049822,-151.0,0.000126,2]
[352552656,1739163049832,-35757.78054597,0.00012602,5]
[352552657,1739163049845,-514.67,0.00012602,2]
[352552658,1739163049855,-500.0,0.00012602,2]
[352552659,1739163049864,-500.0,0.00012602,2]
[352552660,1739163049873,-500.0,0.00012602,2]
[352552661,1739163049884,-713.08,0.00012602,2]
[352552662,1739163049894,-500.0,0.00012602,2]
[352552663,1739163049904,-500.0,0.00012602,2]
[352552664,1739163049914,-571.76203277,0.00012602,2]
[352552665,1739163049924,-1011.07,0.00012602,2]
[352552666,1739163049934,-295.2,0.00012602,2]
[352552667,1739163049943,-500.0,0.00012602,2]
[352552668,1739163049953,-3397.26,0.00012602,2]
[352552669,1739163049963,-1873.66,0.00012602,2]
[352552670,1739163049973,-2712.36,0.00012602,2]
[352552671,1739163049983,-1060.14,0.00012602,2]
[352552672,1739163049993,-500.0,0.00012602,2]
[352552673,1739163050008,-2000.71,0.00012602,2]
[352552674,1739163050017,-615.32,0.00012602,2]
[352552675,1739163050027,-500.0,0.00012602,2]
[352552676,1739163050037,-1031.63,0.00012602,2]
[352552677,1739163050047,-217.62057273,0.00012602,2]
[352552678,1739163050057,-500.0,0.00012602,2]
[352552679,1739163050066,-500.0,0.00012602,2]
[352552680,1739163050076,-1082.77,0.00012602,2]
[352552681,1739163050086,-801.49,0.00012602,2]
[352552682,1739163050097,-833.37,0.00012602,2]
[352552683,1739163050107,-13992.6,0.00012602,2]
[352552684,1739163050117,-6728.37,0.00012602,2]
[352552685,1739163050126,-673.41,0.00012602,2]
[352552686,1739163050136,-551.31,0.00012602,2]
[352552687,1739163050145,-500.0,0.00012602,2]
[352552688,1739163050155,-571.43,0.00012602,2]
[352552689,1739163050164,-500.0,0.00012602,2]
[352552690,1739163050174,-1368.94,0.00012602,2]
[352552691,1739163050183,-564.24,0.00012602,2]
[352552692,1739163050193,-714.2,0.00012602,2]
[352552693,1739163050204,-559.25,0.00012602,2]
[352552694,1739163050214,-1349.53,0.00012602,2]
[352552695,1739163050223,-500.0,0.00012602,2]
[352552696,1739163050233,-670.75,0.00012602,2]
[352552697,1739163050243,-500.0,0.00012602,2]
[352552698,1739163050253,-500.0,0.00012602,2]
[352552699,1739163050263,-523.19,0.00012602,2]
[352552700,1739163050273,-733.06,0.00012602,2]
[352552701,1739163050283,-500.0,0.00012602,2]
[352552702,1739163050293,-588.74,0.00012602,2]
[352552703,1739163050302,-1734.87,0.00012602,2]
[352552704,1739163050313,-1637.76,0.00012602,2]
[352552705,1739163050322,-734.43,0.00012602,2]
[352552706,1739163050332,-500.0,0.00012602,2]
[352552707,1739163050341,-372.43024915,0.00012696,2]
[352552708,1739163050351,-632.3809814,0.00012696,2]
[352552709,1739163050463,-867.6190186,0.00012696,2]
[352552710,1739163050472,-9026.06837269,0.00012739,5]
[352552711,1739163050481,-514.67,0.00012739,2]
[352552712,1739163050491,-500.0,0.00012739,2]
[352552713,1739163050500,-500.0,0.00012739,2]
[352552714,1739163050509,-500.0,0.00012739,2]
[352552715,1739163050518,-713.08,0.00012739,2]
[352552716,1739163050527,-500.0,0.00012739,2]
[352552717,1739163050536,-500.0,0.00012739,2]
[352552718,1739163050546,-1011.07,0.00012739,2]
[352552719,1739163050556,-500.0,0.00012739,2]
[352552720,1739163050565,-3397.26,0.00012739,2]
[352552721,1739163050575,-1873.66,0.00012739,2]
[352552722,1739163050584,-2712.36,0.00012739,2]
[352552723,1739163050594,-1060.14,0.00012739,2]
[352552724,1739163050604,-500.0,0.00012739,2]
[352552725,1739163050614,-2000.71,0.00012739,2]
[352552726,1739163050623,-615.32,0.00012739,2]
[352552727,1739163050633,-500.0,0.00012739,2]
[352552728,1739163050643,-1031.63,0.00012739,2]
[352552729,1739163050652,-500.0,0.00012739,2]
[352552730,1739163050662,-500.0,0.00012739,2]
[352552731,1739163050672,-1082.77,0.00012739,2]
[352552732,1739163050682,-801.49,0.00012739,2]
[352552733,1739163050692,-833.37,0.00012739,2]
[352552734,1739163050701,-13992.6,0.00012739,2]
[352552735,1739163050711,-6728.37,0.00012739,2]
[352552736,1739163050720,-673.41,0.00012739,2]
[352552737,1739163050729,-500.0,0.00012739,2]
[352552738,1739163050738,-551.31,0.00012739,2]
[352552739,1739163050748,-571.43,0.00012739,2]
[352552740,1739163050758,-500.0,0.00012739,2]
[352552741,1739163050768,-1368.94,0.00012739,2]
[352552742,1739163050778,-564.24,0.00012739,2]
[352552743,1739163050787,-714.2,0.00012739,2]
[352552744,1739163050797,-559.25,0.00012739,2]
[352552745,1739163050806,-1349.53,0.00012739,2]
[352552746,1739163050815,-500.0,0.00012739,2]
[352552747,1739163050826,-670.75,0.00012739,2]
[352552748,1739163050836,-500.0,0.00012739,2]
[352552749,1739163050849,-500.0,0.00012739,2]
[352552750,1739163050859,-523.19,0.00012739,2]
[352552751,1739163050869,-733.06,0.00012739,2]
[352552752,1739163050880,-209.14727519,0.00012739,2]
[352552753,1739163050891,-588.74,0.00012739,2]
[352552754,1739163050901,-1734.87,0.00012739,2]
[352552755,1739163050912,-1637.76,0.00012739,2]
[352552756,1739163050923,-734.43,0.00012739,2]
[352552757,1739163050933,-500.0,0.00012739,2]
[352552758,1739163050942,-299.30298183,0.00012776,2]
[352552759,1739163050952,-514.67,0.00012876,2]
[352552760,1739163050961,-500.0,0.00012876,2]
[352552761,1739163050971,-500.0,0.00012876,2]
[352552762,1739163050981,-500.0,0.00012876,2]
[352552763,1739163050990,-713.08,0.00012876,2]
[352552764,1739163051000,-500.0,0.00012876,2]
[352552765,1739163051009,-500.0,0.00012876,2]
[352552766,1739163051019,-1011.07,0.00012876,2]
[352552767,1739163051028,-500.0,0.00012876,2]
[352552768,1739163051038,-3397.26,0.00012876,2]
[352552769,1739163051047,-1873.66,0.00012876,2]
[352552770,1739163051057,-2712.36,0.00012876,2]
[352552771,1739163051067,-1060.14,0.00012876,2]
[352552772,1739163051077,-500.0,0.00012876,2]
[352552773,1739163051086,-2000.71,0.00012876,2]
[352552774,1739163051096,-615.32,0.00012876,2]
[352552775,1739163051106,-500.0,0.00012876,2]
[352552776,1739163051116,-1031.63,0.00012876,2]
[352552777,1739163051126,-500.0,0.00012876,2]
[352552778,1739163051135,-500.0,0.00012876,2]
[352552779,1739163051145,-1082.77,0.00012876,2]
[352552780,1739163051155,-801.49,0.00012876,2]
[352552781,1739163051164,-833.37,0.00012876,2]
[352552782,1739163051175,-13992.6,0.00012876,2]
[352552783,1739163051185,-6728.37,0.00012876,2]
[352552784,1739163051194,-673.41,0.00012876,2]
[352552785,1739163051203,-500.0,0.00012876,2]
[352552786,1739163051213,-551.31,0.00012876,2]
[352552787,1739163051223,-571.43,0.00012876,2]
[352552788,1739163051233,-500.0,0.00012876,2]
[352552789,1739163051243,-1368.94,0.00012876,2]
[352552790,1739163051253,-564.24,0.00012876,2]
[352552791,1739163051263,-714.2,0.00012876,2]
[352552792,1739163051273,-559.25,0.00012876,2]
[352552793,1739163051282,-1349.53,0.00012876,2]
[352552794,1739163051293,-500.0,0.00012876,2]
[352552795,1739163051303,-670.75,0.00012876,2]
[352552796,1739163051312,-500.0,0.00012876,2]
[352552797,1739163051322,-427.04,0.00012876,2]
[352552798,1739163051332,-523.19,0.00012876,2]
[352552799,1739163051342,-733.06,0.00012876,2]
[352552800,1739163051353,-588.74,0.00012876,2]
[352552801,1739163051362,-1734.87,0.00012876,2]
[352552802,1739163051372,-1637.76,0.00012876,2]
[352552803,1739163051382,-734.43,0.00012876,2]
[352552804,1739163051391,-500.0,0.00012876,2]
[352552805,1739163051401,-2197.14829164,0.000129,2]
[352552806,1739163051411,-2197.1482916,0.000129,2]
[352552807,1739163051421,-2197.1482916,0.000129,2]
[352552808,1739163051430,-500.0,0.0001297,2]
[352552809,1739163051439,-7438.69753278,0.00013,2]
[352552810,1739163051449,-514.67,0.00013013,2]
[352552811,1739163051458,-500.0,0.00013013,2]
[352552812,1739163051468,-156.77602959,0.00013013,2]
[352552813,1739163051478,-500.0,0.00013013,2]
[352552814,1739163051487,-713.08,0.00013013,2]
[352552815,1739163051497,-500.0,0.00013013,2]
[352552816,1739163051506,-500.0,0.00013013,2]
[352552817,1739163051516,-1011.07,0.00013013,2]
[352552818,1739163051526,-500.0,0.00013013,2]
[352552819,1739163051535,-3397.26,0.00013013,2]
[352552820,1739163051544,-1873.66,0.00013013,2]
[352552821,1739163051555,-2712.36,0.00013013,2]
[352552822,1739163051564,-1060.14,0.00013013,2]
[352552823,1739163051574,-489.69975139,0.00013013,2]
[352552824,1739163051583,-2000.71,0.00013013,2]
[352552825,1739163051592,-615.32,0.00013013,2]
[352552826,1739163051601,-500.0,0.00013013,2]
[352552827,1739163051611,-1031.63,0.00013013,2]
[352552828,1739163051621,-500.0,0.00013013,2]
[352552829,1739163051630,-500.0,0.00013013,2]
[352552830,1739163051640,-1082.77,0.00013013,2]
[352552831,1739163051650,-801.49,0.00013013,2]
[352552832,1739163051659,-833.37,0.00013013,2]
[352552833,1739163051668,-13992.6,0.00013013,2]
[352552834,1739163051678,-6728.37,0.00013013,2]
[352552835,1739163051687,-673.41,0.00013013,2]
[352552836,1739163051697,-154.8413949,0.00013013,2]
[352552837,1739163051706,-551.31,0.00013013,2]
[352552838,1739163051716,-571.43,0.00013013,2]
[352552839,1739163051726,-500.0,0.00013013,2]
[352552840,1739163051736,-1368.94,0.00013013,2]
[352552841,1739163051746,-564.24,0.00013013,2]
[352552842,1739163051755,-714.2,0.00013013,2]
[352552843,1739163051765,-559.25,0.00013013,2]
[352552844,1739163051775,-1349.53,0.00013013,2]
[352552845,1739163051784,-500.0,0.00013013,2]
[352552846,1739163051794,-670.75,0.00013013,2]
[352552847,1739163051806,-500.0,0.00013013,2]
[352552848,1739163051815,-523.19,0.00013013,2]
[352552849,1739163051825,-733.06,0.00013013,2]
[352552850,1739163051837,-588.74,0.00013013,2]
[352552851,1739163051849,-1734.87,0.00013013,2]
[352552852,1739163051860,-1637.76,0.00013013,2]
[352552853,1739163051870,-734.43,0.00013013,2]
[352552854,1739163051881,-500.0,0.00013013,2]
[352552855,1739163051999,-514.67,0.0001315,2]
[352552856,1739163052009,-500.0,0.0001315,2]
[352552857,1739163052019,-500.0,0.0001315,2]
[352552858,1739163052028,-713.08,0.0001315,2]
[352552859,1739163052038,-500.0,0.0001315,2]
[352552860,1739163052048,-518.8445936,0.0001315,2]
[352552861,1739163052058,-1011.07,0.0001315,2]
[352552862,1739163052069,-169.71435508,0.0001315,2]
[352552863,1739163052078,-3397.26,0.0001315,2]
[352552864,1739163052088,-1652.7224368,0.0001315,2]
[352552865,1739163052102,-220.9375632,0.0001315,2]
[352552866,1739163052114,-2712.36,0.0001315,2]
[352552867,1739163052124,-1060.14,0.0001315,2]
[352552868,1739163052134,-2000.71,0.0001315,2]
[352552869,1739163052144,-615.32,0.0001315,2]
[352552870,1739163052154,-500.0,0.0001315,2]
[352552871,1739163052164,-1031.63,0.0001315,2]
[352552872,1739163052175,-500.0,0.0001315,2]
[352552873,1739163052185,-500.0,0.0001315,2]
[352552874,1739163052196,-1082.77,0.0001315,2]
[352552875,1739163052206,-801.49,0.0001315,2]
[352552876,1739163052216,-250.99779264,0.0001315,2]
[352552877,1739163052233,-582.37220736,0.0001315,2]
[352552878,1739163052243,-13992.6,0.0001315,2]
[352552879,1739163052253,-6728.37,0.0001315,2]
[352552880,1739163052263,-673.41,0.0001315,2]
[352552881,1739163052272,-551.31,0.0001315,2]
[352552882,1739163052282,-571.43,0.0001315,2]
[352552883,1739163052292,-500.0,0.0001315,2]
[352552884,1739163052301,-1368.94,0.0001315,2]
[352552885,1739163052311,-564.24,0.0001315,2]
[352552886,1739163052321,-714.2,0.0001315,2]
[352552887,1739163052331,-559.25,0.0001315,2]
[352552888,1739163052341,-1349.53,0.0001315,2]
[352552889,1739163052350,-356.03,0.0001315,2]
[352552890,1739163052361,-670.75,0.0001315,2]
[352552891,1739163052371,-500.0,0.0001315,2]
[352552892,1739163052381,-523.19,0.0001315,2]
[352552893,1739163052391,-733.06,0.0001315,2]
[352552894,1739163052401,-588.74,0.0001315,2]
[352552895,1739163052410,-1734.87,0.0001315,2]
[352552896,1739163052420,-1637.76,0.0001315,2]
[352552897,1739163052430,-734.43,0.0001315,2]
[352552898,1739163052439,-267.33,0.0001315,2]
[352552899,1739163052449,-151.0,0.000132,2]
[352552900,1739163052458,-587.0,0.00013231,2]
[352552901,1739163052468,-151.01526129,0.00013238,2]
[352552902,1739163052477,-299.30298179,0.00013256,2]
[352552903,1739163052487,-514.67,0.00013287,2]
[352552904,1739163052496,-458.49,0.00013287,2]
[352552905,1739163052506,-500.0,0.00013287,2]
[352552906,1739163052515,-713.08,0.00013287,2]
[352552907,1739163052524,-500.0,0.00013287,2]
[352552908,1739163052534,-1011.07,0.00013287,2]
[352552909,1739163052544,-3397.26,0.00013287,2]
[352552910,1739163052554,-1873.66,0.00013287,2]
[352552911,1739163052563,-2712.36,0.00013287,2]
[352552912,1739163052573,-1060.14,0.00013287,2]
[352552913,1739163052583,-2000.71,0.00013287,2]
[352552914,1739163052592,-615.32,0.00013287,2]
[352552915,1739163052602,-311.54,0.00013287,2]
[352552916,1739163052612,-1031.63,0.00013287,2]
[352552917,1739163052621,-500.0,0.00013287,2]
[352552918,1739163052630,-500.0,0.00013287,2]
[352552919,1739163052640,-1082.77,0.00013287,2]
[352552920,1739163052650,-801.49,0.00013287,2]
[352552921,1739163052661,-833.37,0.00013287,2]
[352552922,1739163052670,-13190.97349071,0.00013287,2]
[352552923,1739163052710,-309.8,0.00013287,2]
[352552924,1739163052847,-500.0,0.00010958,2]
[352552925,1739163052856,-6.5622234,0.00011095,2]
[352552926,1739163052920,-493.4377766,0.00011095,2]
[352552927,1739163052929,-491.82650929,0.00013287,2]
[352552928,1739163052939,-6728.37,0.00013287,2]
[352552929,1739163052948,-673.41,0.00013287,2]
[352552930,1739163052957,-551.31,0.00013287,2]
[352552931,1739163052967,-571.43,0.00013287,2]
[352552932,1739163052977,-426.93,0.00013287,2]
[352552933,1739163052986,-1368.94,0.00013287,2]
[352552934,1739163052996,-564.24,0.00013287,2]
[352552935,1739163053005,-714.2,0.00013287,2]
[352552936,1739163053015,-559.25,0.00013287,2]
[352552937,1739163053024,-1349.53,0.00013287,2]
[352552938,1739163053035,-670.75,0.00013287,2]
[352552939,1739163053046,-477.01,0.00013287,2]
[352552940,1739163053056,-523.19,0.00013287,2]
[352552941,1739163053066,-733.06,0.00013287,2]
[352552942,1739163053075,-588.74,0.00013287,2]
[352552943,1739163053093,-1734.87,0.00013287,2]
[352552944,1739163053104,-1637.76,0.00013287,2]
[352552945,1739163053113,-734.43,0.00013287,2]
[352552946,1739163053123,-600.0,0.00013385,2]
[352552947,1739163053132,-761.572,0.00013424,2]
[352552948,1739163053143,-514.67,0.00013424,2]
[352552949,1739163053152,-521.71,0.00013424,2]
[352552950,1739163053162,-713.08,0.00013424,2]
[352552951,1739163053171,-600.31,0.00013424,2]
[352552952,1739163053181,-1011.07,0.00013424,2]
[352552953,1739163053192,-3397.26,0.00013424,2]
[352552954,1739163053202,-1873.66,0.00013424,2]
[352552955,1739163053212,-2712.36,0.00013424,2]
[352552956,1739163053222,-1060.14,0.00013424,2]
[352552957,1739163053232,-2000.71,0.00013424,2]
[352552958,1739163053242,-43.22323333,0.00013424,2]
[352552959,1739163053267,-572.09676667,0.00013424,2]
[352552960,1739163053283,-300.13659317,0.00013424,2]
[352552961,1739163053301,-731.49340683,0.00013424,2]
[352552962,1739163053316,-500.0,0.00013424,2]
[352552963,1739163053328,-500.0,0.00013424,2]
[352552964,1739163053340,-1082.77,0.00013424,2]
[352552965,1739163053355,-801.49,0.00013424,2]
[352552966,1739163053368,-833.37,0.00013424,2]
[352552967,1739163053381,-13992.6,0.00013424,2]
[352552968,1739163053393,-3333.56714919,0.00013424,2]
[352552969,1739163053409,-800.88,0.00013424,2]
[352552970,1739163053425,-691.15,0.00013424,2]
[352552971,1739163053442,-1902.77285081,0.00013424,2]
[352552972,1739163053456,-673.41,0.00013424,2]
[352552973,1739163053468,-551.31,0.00013424,2]
[352552974,1739163053480,-571.43,0.00013424,2]
[352552975,1739163053492,-1368.94,0.00013424,2]
[352552976,1739163053507,-564.24,0.00013424,2]
[352552977,1739163053520,-270.37633535,0.00013424,2]
[352552978,1739163053768,-443.82366465,0.00013424,2]
[352552979,1739163053780,-554.42507697,0.00013424,2]
[352552980,1739163053875,-4.82492303,0.00013424,2]
[352552981,1739163053891,-1349.53,0.00013424,2]
[352552982,1739163053902,-670.75,0.00013424,2]
[352552983,1739163053913,-523.19,0.00013424,2]
[352552984,1739163053925,-733.06,0.00013424,2]
[352552985,1739163053935,-588.74,0.00013424,2]
[352552986,1739163053948,-1734.87,0.00013424,2]
[352552987,1739163053960,-1637.76,0.00013424,2]
[352552988,1739163053972,-734.43,0.00013424,2]
[352552989,1739163053984,-514.67,0.00013561,2]
[352552990,1739163053995,-713.08,0.00013561,2]
[352552991,1739163054007,-1011.07,0.00013561,2]
[352552992,1739163054018,-3397.26,0.00013561,2]
[352552993,1739163054029,-1873.66,0.00013561,2]
[352552994,1739163054041,-2712.36,0.00013561,2]
[352552995,1739163054052,-1060.14,0.00013561,2]
[352552996,1739163054063,-2000.71,0.00013561,2]
[352552997,1739163054075,-615.32,0.00013561,2]
[352552998,1739163054086,-1031.63,0.00013561,2]
[352552999,1739163054097,-500.0,0.00013561,2]
[352553000,1739163054108,-168.88380174,0.00013561,2]
[352553001,1739163054119,-1082.77,0.00013561,2]
[352553002,1739163054131,-801.49,0.00013561,2]
[352553003,1739163054142,-833.37,0.00013561,2]
[352553004,1739163054153,-222.16368577,0.00013561,2]
[352553011,1739163943165,-1185.04397012,9.878e-05,2]
[352553012,1739163957232,-3814.95602988,9.878e-05,2]
[352553013,1739163957256,-1633.15597212,9.978e-05,2]
[352553014,1739164007077,-176.44026546,9.878e-05,2]
[352553015,1739164026122,-1843.60343725,9.878e-05,2]